bitfinex/quotes_ETHUSD_20241023
["timestamp","ask_amount","ask_price","bid_price","bid_amount"]
[1729645035512,5.12870175,2614.3,2613.9,1.01311107]
[1729645035737,1.725434,2614.2,2613.9,0.93660593]
[1729645035945,0.03933225,2614.2,2613.9,0.93660593]
[1729645036258,5.12870175,2614.3,2613.9,0.93660593]
[1729645036442,0.03932914,2614.1,2613.9,0.93660593]
[1729645036631,1.68610175,2614.2,2613.9,0.93660593]
[1729645036833,0.03932603,2614.0,2613.9,0.93660593]
[1729645037036,5.12870175,2614.3,2613.9,0.93660593]
[1729645037354,5.12870175,2614.3,2613.8,4.19978]
[1729645037664,0.03933225,2614.2,2613.8,4.19978]
[1729645037958,5.12870175,2614.3,2613.8,4.19978]
[1729645038129,0.03933225,2614.2,2613.8,4.19978]
[1729645038324,5.12870175,2614.3,2613.8,4.19978]
[1729645038546,0.03933225,2614.2,2613.8,5.04428402]
[1729645038877,5.12870175,2614.3,2613.8,5.04428402]
[1729645039023,0.03932914,2614.1,2613.8,1.60110402]
[1729645039354,3.44313,2613.9,2613.5,0.8202]
[1729645039665,0.7549,2614.2,2613.7,4.26356]
[1729645039666,0.03931254,2613.8,2613.7,4.26356]
[1729645039967,3.44287,2614.1,2613.7,4.26356]
[1729645040135,0.0392884,2614.0,2613.8,0.426356]
[1729645040817,0.0392884,2614.0,2613.7,0.8202]
[1729645041865,1.72539015,2614.0,2613.7,0.8202]
[1729645042558,0.0392884,2614.0,2613.7,0.8202]
[1729645043044,3.4822884,2614.0,2613.7,0.8202]
[1729645044066,0.0392884,2614.0,2613.7,0.8202]
[1729645044374,4.19746,2614.4,2613.8,5.63988038]
[1729645044576,4.19746,2614.4,2613.8,3.95377863]
[1729645044577,3.48134057,2614.3,2613.8,3.95377863]
[1729645044778,5.16744232,2614.3,2613.8,3.95377863]
[1729645045280,1.72478232,2614.3,2613.9,3.4431]
[1729645045483,0.03868057,2614.3,2614.0,0.73968086]
[1729645045849,3.48129057,2614.3,2614.0,0.73968086]
[1729645046545,0.03868057,2614.3,2614.0,0.73968086]
[1729645046872,5.16741232,2614.3,2614.0,0.73968086]
[1729645048488,3.48131057,2614.3,2614.0,0.73968086]
[1729645049584,0.03868057,2614.3,2614.2,3.99273]
[1729645049746,3.44241,2614.5,2614.2,1.16026109]
[1729645049945,0.03874196,2614.4,2614.2,1.16026109]
[1729645051374,2.44100175,2614.3,2613.9,1.62208017]
[1729645051591,1.68610175,2614.0,2613.8,1.23589641]
[1729645051800,0.03882761,2613.9,2613.8,0.43401624]
[1729645052200,3.44301,2614.0,2613.8,0.43401624]
[1729645052607,0.03884703,2613.9,2613.8,0.43401624]
[1729645054638,4.25247703,2613.9,2613.7,0.80188017]
[1729645055179,0.80934703,2613.9,2613.7,0.80188017]
[1729645057481,0.80934703,2613.9,2613.8,0.80188017]
[1729645058094,0.03884703,2613.9,2613.8,0.80188017]
[1729645058483,0.03884703,2613.9,2613.7,1.20282026]
[1729645058637,0.03884703,2613.9,2613.8,0.80248054]
[1729645059058,0.03884703,2613.9,2613.8,1.20282026]
[1729645059482,0.03884703,2613.9,2613.7,3.15658921]
[1729645059842,0.03884703,2613.9,2613.8,1.20457999]
[1729645060179,0.03884703,2613.9,2613.8,1.60376035]
[1729645060483,0.03884703,2613.9,2613.7,3.15658921]
[1729645061189,0.03884703,2613.9,2613.8,2.41968007]
[1729645061688,0.03884703,2613.9,2613.8,0.81591972]
[1729645061981,0.03884703,2613.9,2613.8,2.41968007]
[1729645062205,0.7705,2614.1,2613.8,2.41968007]
[1729645062357,0.7705,2614.1,2614.0,0.80303357]
[1729645062887,4.21336,2614.1,2613.9,0.80303357]
[1729645063205,1.68610175,2614.0,2613.9,0.80303357]
[1729645064610,5.12909175,2614.0,2613.9,0.80303357]
[1729645064908,5.12909175,2614.0,2613.8,0.80303357]
[1729645065065,5.12909175,2614.0,2613.9,0.80303357]
[1729645065410,5.12909175,2614.0,2613.8,0.80303357]
[1729645067107,5.12909175,2614.0,2613.7,1.20455036]
[1729645067108,5.12909175,2614.0,2613.9,0.80303357]
[1729645067473,5.12909175,2614.0,2613.8,0.80303357]
[1729645072228,0.03864461,2613.9,2613.8,0.80303357]
[1729645074482,5.16787636,2613.9,2613.7,0.80303357]
[1729645078464,3.48177461,2613.9,2613.7,0.80303357]
[1729645078810,5.16787636,2613.9,2613.7,0.80303357]
[1729645079315,3.48177461,2613.9,2613.7,0.80303357]
[1729645080437,8.61109636,2613.9,2613.7,0.80303357]
[1729645080745,5.16787636,2613.9,2613.7,0.80303357]
[1729645081207,3.48177461,2613.9,2613.7,0.80303357]
[1729645097334,3.48177461,2613.9,2613.8,0.80303357]
[1729645105681,3.44331,2613.8,2613.5,0.8321]
[1729645105832,3.44331,2613.8,2613.5,1.259692]
[1729645106032,0.03835155,2613.7,2613.5,1.259692]
[1729645106232,3.44331,2613.8,2613.5,1.259692]
[1729645106433,0.03835155,2613.7,2613.5,1.259692]
[1729645106637,3.44331,2613.8,2613.5,1.259692]
[1729645106970,0.03835155,2613.7,2613.5,1.259692]
[1729645107167,3.44331,2613.8,2613.5,1.259692]
[1729645107545,0.03835155,2613.7,2613.5,1.259692]
[1729645107778,3.44331,2613.8,2613.5,1.259692]
[1729645107974,0.03835155,2613.7,2613.5,1.259692]
[1729645108270,3.44331,2613.8,2613.6,0.4703472]
[1729645108469,3.44331,2613.8,2613.5,1.259692]
[1729645108470,0.03834844,2613.6,2613.5,1.259692]
[1729645108670,3.44331,2613.8,2613.5,1.259692]
[1729645108968,0.03834844,2613.6,2613.5,1.259692]
[1729645109478,3.44331,2613.8,2613.5,1.259692]
[1729645109680,0.03834844,2613.6,2613.5,1.259692]
[1729645109879,3.44331,2613.8,2613.5,1.259692]
[1729645110071,0.03834844,2613.6,2613.5,1.259692]
[1729645110272,3.44331,2613.8,2613.5,1.259692]
[1729645110475,0.03834844,2613.6,2613.5,1.259692]
[1729645110639,3.44331,2613.8,2613.5,1.259692]
[1729645110840,0.03835155,2613.7,2613.5,1.259692]
[1729645111039,3.44331,2613.8,2613.5,1.259692]
[1729645111279,0.03835155,2613.7,2613.5,1.259692]
[1729645111582,3.44331,2613.8,2613.5,1.259692]
[1729645111879,0.03835155,2613.7,2613.5,1.259692]
[1729645112192,3.44331,2613.8,2613.5,1.259692]
[1729645112498,0.03835155,2613.7,2613.5,1.259692]
[1729645112772,3.44331,2613.8,2613.5,1.259692]
[1729645113078,0.03835155,2613.7,2613.5,1.259692]
[1729645113380,3.44331,2613.8,2613.5,1.259692]
[1729645113582,0.03831105,2613.7,2613.5,1.259692]
[1729645113789,3.44331,2613.8,2613.6,0.4703472]
[1729645113996,0.03831105,2613.7,2613.5,1.259692]
[1729645114153,3.44331,2613.8,2613.5,1.259692]
[1729645114352,0.03831105,2613.7,2613.5,1.259692]
[1729645114568,3.44331,2613.8,2613.5,1.259692]
[1729645114871,0.03831105,2613.7,2613.5,1.259692]
[1729645115183,0.03830794,2613.6,2613.5,1.259692]
[1729645115353,3.44333,2613.8,2613.5,1.259692]
[1729645115552,3.44333,2613.8,2613.7,1.20561889]
[1729645117055,3.48164416,2613.8,2613.7,1.20561889]
[1729645121731,5.95414591,2613.8,2613.7,1.20561889]
[1729645121913,5.95414591,2613.8,2613.6,0.80389543]
[1729645121914,3.44339,2613.7,2613.6,0.80389543]
[1729645122083,5.12949175,2613.7,2613.6,0.80388904]
[1729645122296,3.48167223,2613.7,2613.6,0.80388904]
[1729645122928,5.16777398,2613.7,2613.6,0.80388904]
[1729645123294,3.48167223,2613.7,2613.6,0.80388904]
[1729645123493,5.16777398,2613.7,2613.6,0.80388904]
[1729645124302,3.48167223,2613.7,2613.6,0.80388904]
[1729645124508,5.16777398,2613.7,2613.6,0.80388904]
[1729645126345,3.44352,2613.6,2613.5,0.80388904]
[1729645126747,3.48178351,2613.6,2613.5,0.80388904]
[1729645127847,3.48178351,2613.6,2613.4,1.20561889]
[1729645129313,3.48178351,2613.6,2613.5,0.80314074]
[1729645129513,5.16788526,2613.6,2613.4,1.20561889]
[1729645129714,3.48178351,2613.6,2613.4,1.20561889]
[1729645129914,5.16788526,2613.6,2613.5,0.80314037]
[1729645131054,3.48178351,2613.6,2613.5,0.80314037]
[1729645145093,3.48178351,2613.6,2613.4,1.56824037]
[1729645145389,3.48178351,2613.6,2613.5,0.80314037]
[1729645147793,3.48178351,2613.6,2613.4,1.56824037]
[1729645148376,3.48178351,2613.6,2613.5,0.80314037]
[1729645150496,3.48178351,2613.6,2613.5,1.0805263]
[1729645150656,3.48178351,2613.6,2613.5,6.72015506]
[1729645150657,0.03826351,2613.6,2613.5,6.72015506]
[1729645150993,5.72733283,2614.5,2614.1,0.7651]
[1729645151200,5.12844175,2614.5,2614.3,0.80268817]
[1729645151355,5.12844175,2614.5,2614.1,1.96913225]
[1729645151356,5.12844175,2614.5,2614.2,0.80268817]
[1729645151894,8.57089175,2614.5,2614.2,0.80268817]
[1729645152193,5.12857175,2614.4,2614.2,0.80268817]
[1729645152364,1.68610175,2614.3,2614.1,1.56778817]
[1729645152550,5.12857175,2614.4,2614.1,1.56778817]
[1729645153266,3.44234,2614.5,2614.1,5.01063817]
[1729645153598,5.12844175,2614.5,2614.1,5.97641521]
[1729645153892,1.68610175,2614.3,2614.1,1.56778817]
[1729645154082,1.68610175,2614.2,2614.0,0.80268817]
[1729645154400,3.44255,2614.4,2614.0,0.80268817]
[1729645154401,1.68610175,2614.3,2614.0,0.80268817]
[1729645155006,1.68610175,2614.1,2614.0,0.80268817]
[1729645155293,1.68610175,2614.2,2613.9,1.56778817]
[1729645155457,1.68610175,2614.2,2614.0,0.62150404]
[1729645155875,5.90147175,2614.3,2614.0,0.62150404]
[1729645161070,9.34419175,2614.3,2614.0,0.62150404]
[1729645161271,5.90147175,2614.3,2614.0,0.62150404]
[1729645162096,1.68610175,2614.1,2613.9,0.80268817]
[1729645162304,1.68610175,2614.0,2613.7,0.80268817]
[1729645162506,3.44297,2614.1,2613.7,0.80268817]
[1729645162507,5.12907175,2614.1,2613.7,0.80268817]
[1729645163313,3.44297,2614.1,2613.7,0.80268817]
[1729645163502,5.12907175,2614.1,2613.7,0.80268817]
[1729645163689,5.12907175,2614.1,2613.8,0.62223404]
[1729645167715,3.44301,2614.0,2613.8,0.62223404]
[1729645167924,3.44301,2614.0,2613.6,1.57478817]
[1729645168323,3.44301,2614.0,2613.7,0.80268817]
[1729645169205,5.12898175,2614.1,2613.7,0.80268817]
[1729645172021,3.44288,2614.1,2613.7,0.80268817]
[1729645172320,3.44288,2614.1,2613.7,4.24606817]
[1729645172484,3.44288,2614.1,2613.8,0.62987128]
[1729645176426,3.44288,2614.1,2613.7,4.24606817]
[1729645176927,3.44288,2614.1,2613.7,0.80268817]
[1729645181735,3.44305,2614.0,2613.7,0.80268817]
[1729645181941,1.68610175,2613.8,2613.7,0.80268817]
[1729645182233,3.44299,2614.0,2613.6,1.97613225]
[1729645182234,3.44319,2613.9,2613.6,1.57478817]
[1729645182613,3.44319,2613.9,2613.6,0.7721]
[1729645183293,3.44319,2613.9,2613.6,1.57478817]
[1729645187147,5.12929175,2613.9,2613.6,1.57478817]
[1729645190204,1.68610175,2613.8,2613.6,1.57478817]
[1729645190404,5.12923175,2613.9,2613.6,1.57478817]
[1729645192824,5.12923175,2613.9,2613.7,0.80268817]
[1729645199455,5.12923175,2613.9,2613.8,0.80268817]
[1729645200040,5.12923175,2613.9,2613.7,0.80268817]
[1729645200236,5.12923175,2613.9,2613.6,1.97613225]
[1729645200237,5.12923175,2613.9,2613.8,0.80268817]
[1729645200951,3.44326,2613.8,2613.7,0.80268817]
[1729645201136,5.12923175,2613.9,2613.7,0.80268817]
[1729645201328,5.12923175,2613.9,2613.8,0.80268817]
[1729645202054,5.12923175,2613.9,2613.7,0.80268817]
[1729645202419,5.12923175,2613.9,2613.8,0.80268817]
[1729645202620,5.12923175,2613.9,2613.7,0.80268817]
[1729645203131,5.12923175,2613.9,2613.8,0.80268817]
[1729645203621,3.44326,2613.8,2613.7,0.80268817]
[1729645203832,1.68610175,2613.8,2613.7,0.80268817]
[1729645204029,3.44326,2613.8,2613.6,1.97613225]
[1729645205034,3.44326,2613.8,2613.6,1.20403225]
[1729645205355,3.44326,2613.8,2613.7,0.80299645]
[1729645205514,3.44326,2613.8,2613.7,0.8029921]
[1729645205713,5.12936175,2613.8,2613.7,0.8029921]
[1729645205959,5.12936175,2613.8,2613.6,1.20403225]
[1729645205960,5.12936175,2613.8,2613.6,0.8029921]
[1729645206165,5.12949175,2613.7,2613.6,0.8029921]
[1729645206451,5.12943175,2613.8,2613.6,0.8029921]
[1729645206654,1.68610175,2613.8,2613.6,0.8029921]
[1729645206958,5.12949175,2613.7,2613.6,0.8029921]
[1729645207260,3.44339,2613.7,2613.6,0.8029921]
[1729645207423,5.12949175,2613.7,2613.6,0.8029921]
[1729645210569,0.8247,2614.0,2613.6,0.8029921]
[1729645210570,3.44321,2613.9,2613.6,0.8029921]
[1729645210863,3.44267,2614.3,2613.6,0.8029921]
[1729645210864,3.44293,2614.1,2613.7,2.01453225]
[1729645211063,2.45070175,2614.3,2613.8,0.80276992]
[1729645211064,5.89334175,2614.3,2613.8,0.80276992]
[1729645211232,3.44274,2614.2,2613.9,0.80276992]
[1729645211437,5.12874175,2614.3,2614.0,0.8105]
[1729645211635,5.89313175,2614.5,2614.0,1.61326992]
[1729645211838,3.44263,2614.3,2614.1,0.80276992]
[1729645212034,3.44263,2614.3,2614.2,0.80276992]
[1729645212261,3.44263,2614.3,2614.1,0.80276992]
[1729645213147,5.12866175,2614.4,2614.1,0.80276992]
[1729645214076,3.44261,2614.3,2614.1,0.80276992]
[1729645215487,5.12866175,2614.4,2614.1,0.80276992]
[1729645215780,5.12851175,2614.5,2614.1,0.80276992]
[1729645215974,1.68610175,2614.5,2614.1,0.80276992]
[1729645216146,3.44247,2614.4,2614.1,0.80276992]
[1729645217247,5.12844175,2614.5,2614.1,1.58933477]
[1729645218378,5.12844175,2614.5,2614.1,1.66583445]
[1729645218946,3.44234,2614.5,2614.2,0.8105]
[1729645220808,5.12844175,2614.5,2614.2,0.8105]
[1729645220952,5.16185176,2614.5,2614.2,0.8105]
[1729645221274,5.16185176,2614.5,2614.2,1.86711967]
[1729645221847,8.60427176,2614.5,2614.2,1.86711967]
[1729645222051,3.47575001,2614.5,2614.2,0.8105]
[1729645222255,3.47575001,2614.5,2614.2,1.61326992]
[1729645222655,3.47575001,2614.5,2614.2,0.8105]
[1729645223479,0.03341001,2614.5,2614.2,4.25315]
[1729645223750,2.46230175,2615.2,2614.5,0.55]
[1729645223956,6.88273,2615.3,2614.9,0.8169]
[1729645224268,5.12746175,2615.3,2614.9,1.61860804]
[1729645224468,5.12746175,2615.3,2614.9,2.58926307]
[1729645224669,3.44109,2615.5,2615.0,5.20423184]
[1729645224865,3.44109,2615.5,2615.1,0.8169]
[1729645224866,6.88219,2615.5,2615.1,0.8169]
[1729645225068,5.12719175,2615.5,2615.1,0.8169]
[1729645225290,3.44109,2615.5,2615.1,0.8169]
[1729645226193,5.12719175,2615.5,2615.1,0.8169]
[1729645226502,5.12727175,2615.4,2615.1,0.8169]
[1729645226656,3.44117,2615.4,2615.1,0.8169]
[1729645227997,5.12727175,2615.4,2615.1,0.8169]
[1729645228193,5.12727175,2615.4,2615.1,1.3474837]
[1729645228414,3.44117,2615.4,2615.1,1.3474837]
[1729645228832,5.12727175,2615.4,2615.1,1.3474837]
[1729645229186,8.56850175,2615.4,2615.1,1.3474837]
[1729645229503,1.68610175,2615.3,2615.1,1.3474837]
[1729645230799,5.12740175,2615.3,2615.1,1.3474837]
[1729645231725,1.68610175,2615.3,2615.1,1.3474837]
[1729645233003,3.44117,2615.4,2615.1,1.3474837]
[1729645233190,1.68610175,2615.3,2615.1,1.3474837]
[1729645233528,5.12740175,2615.3,2615.1,1.3474837]
[1729645235543,5.12740175,2615.3,2615.1,0.8169]
[1729645236905,5.12740175,2615.3,2615.0,0.55]
[1729645237218,3.44168,2615.0,2614.7,0.7792]
[1729645237416,5.12778175,2615.0,2614.7,0.7792]
[1729645237942,1.68610175,2615.2,2614.7,0.7792]
[1729645238108,3.44155,2615.1,2614.8,0.7792]
[1729645238311,1.68610175,2615.2,2614.8,0.7792]
[1729645238505,3.44156,2615.1,2614.8,0.7792]
[1729645239326,5.12766175,2615.1,2614.8,0.7792]
[1729645241036,3.44156,2615.1,2614.8,0.7792]
[1729645241604,5.12766175,2615.1,2614.8,0.7792]
[1729645243665,8.56929175,2615.1,2614.8,0.7792]
[1729645243819,5.12766175,2615.1,2614.8,0.7792]
[1729645245161,3.44137,2615.3,2615.0,0.7792]
[1729645245532,5.12747175,2615.3,2615.0,0.7792]
[1729645245735,1.68610175,2615.2,2615.0,0.7792]
[1729645246245,8.56886175,2615.3,2615.0,0.7792]
[1729645246423,5.12747175,2615.3,2615.0,0.7792]
[1729645246627,5.12752175,2615.2,2615.0,0.7792]
[1729645246826,1.68610175,2615.2,2615.0,0.7792]
[1729645247326,5.12747175,2615.3,2615.0,0.7792]
[1729645247549,8.56887175,2615.3,2615.0,0.7792]
[1729645247861,5.12747175,2615.3,2615.0,0.7792]
[1729645248036,5.12752175,2615.2,2615.0,0.7792]
[1729645249462,3.44137,2615.3,2615.0,0.7792]
[1729645249766,6.88277,2615.3,2615.0,0.7792]
[1729645249967,5.12747175,2615.3,2615.0,0.7792]
[1729645250322,5.12747175,2615.3,2615.0,1.201307]
[1729645251262,1.68610175,2615.1,2614.7,0.7967]
[1729645251469,1.68610175,2615.0,2614.8,0.55]
[1729645251626,1.68610175,2615.1,2614.8,0.55]
[1729645251826,5.95327175,2615.3,2614.8,0.62647757]
[1729645252031,1.68610175,2615.2,2614.9,0.48651676]
[1729645252753,5.12752175,2615.2,2614.9,0.48651676]
[1729645253544,1.68610175,2615.2,2614.9,0.48651676]
[1729645254012,5.12747175,2615.3,2615.0,0.7967]
[1729645255880,4.26691,2615.5,2615.0,0.7967]
[1729645255881,5.12721175,2615.5,2615.0,0.7967]
[1729645256070,5.12721175,2615.5,2615.1,0.47248968]
[1729645256588,1.68610175,2615.4,2615.1,0.47248968]
[1729645259482,5.12727175,2615.4,2615.1,0.47248968]
[1729645259679,5.12727175,2615.4,2615.0,0.7967]
[1729645259987,1.68610175,2615.2,2615.0,0.7967]
[1729645260962,5.12738175,2615.3,2615.0,0.7967]
[1729645262073,5.12738175,2615.3,2615.0,1.1794]
[1729645262273,1.68610175,2615.3,2615.0,0.7967]
[1729645262449,5.12726175,2615.4,2615.0,1.40436048]
[1729645264373,1.68610175,2615.3,2615.0,1.40436048]
[1729645266091,1.68610175,2615.3,2615.0,2.20606852]
[1729645268396,1.68610175,2615.3,2615.1,0.80170804]
[1729645269491,1.68610175,2615.3,2615.2,0.80170804]
[1729645270090,5.12738175,2615.3,2615.2,0.80170804]
[1729645273213,3.44076,2615.7,2615.2,0.7853]
[1729645273357,3.44105,2615.5,2615.3,0.80300926]
[1729645273557,5.12700175,2615.6,2615.3,0.80300926]
[1729645273780,5.12700175,2615.6,2615.4,0.80300926]
[1729645274498,1.68610175,2615.6,2615.4,0.80300926]
[1729645274659,5.12701175,2615.6,2615.4,0.80300926]
[1729645275064,5.12701175,2615.6,2615.3,0.80300926]
[1729645275374,5.12701175,2615.6,2615.4,0.80300926]
[1729645276087,8.56798175,2615.6,2615.3,0.80300926]
[1729645276297,5.12701175,2615.6,2615.3,0.80300926]
[1729645276662,1.68610175,2615.5,2615.3,0.80300926]
[1729645276884,8.56797175,2615.6,2615.3,0.80300926]
[1729645277291,5.12701175,2615.6,2615.3,0.80300926]
[1729645278801,5.12687175,2615.7,2615.4,0.80300926]
[1729645279007,5.12687175,2615.7,2615.5,0.80300926]
[1729645279704,3.44089,2615.6,2615.5,0.80300926]
[1729645279874,3.44089,2615.6,2615.4,0.80300926]
[1729645280079,5.12699175,2615.6,2615.4,1.47446031]
[1729645280295,3.44077,2615.7,2615.4,1.47446031]
[1729645280479,5.12687175,2615.7,2615.4,1.47446031]
[1729645281199,8.56772175,2615.7,2615.4,1.47446031]
[1729645281405,1.68610175,2615.5,2615.4,1.47446031]
[1729645281584,1.68610175,2615.5,2615.4,0.80300926]
[1729645282190,3.44089,2615.6,2615.4,0.80300926]
[1729645282191,5.12699175,2615.6,2615.4,0.80300926]
[1729645282509,1.68610175,2615.5,2615.4,0.80300926]
[1729645284277,5.12699175,2615.6,2615.4,0.80300926]
[1729645284915,1.68610175,2615.5,2615.4,0.80300926]
[1729645285123,1.68610175,2615.5,2615.4,1.13411532]
[1729645285430,1.68610175,2615.6,2615.4,1.13411532]
[1729645285574,5.12699175,2615.6,2615.4,1.13411532]
[1729645288016,1.68610175,2615.5,2615.4,1.13411532]
[1729645288321,1.68610175,2615.5,2615.4,0.80300926]
[1729645288721,3.44089,2615.6,2615.3,0.51871911]
[1729645288722,5.12699175,2615.6,2615.3,0.51871911]
[1729645288885,4.24436,2616.3,2615.7,4.26436]
[1729645289084,5.12631175,2616.2,2615.7,4.26436]
[1729645289802,1.68610175,2616.1,2615.7,4.26436]
[1729645290625,4.24436,2616.3,2615.8,3.44061]
[1729645290783,1.68610175,2616.1,2615.8,3.44061]
[1729645290988,1.68610175,2616.1,2615.7,1.72558258]
[1729645291201,5.12633175,2616.1,2615.7,1.64913]
[1729645291407,1.68610175,2616.0,2615.7,1.64913]
[1729645292131,1.68610175,2615.9,2615.7,0.82553]
[1729645292702,1.68610175,2616.0,2615.7,0.82553]
[1729645293011,1.68610175,2615.9,2615.7,0.82553]
[1729645293212,1.68610175,2616.0,2615.7,0.82553]
[1729645295609,5.12633175,2616.1,2615.7,0.82553]
[1729645295798,5.12633175,2616.1,2615.7,1.62701025]
[1729645295999,3.44036,2616.0,2615.7,1.62701025]
[1729645297119,5.12633175,2616.1,2615.7,1.62701025]
[1729645297315,5.12633175,2616.1,2615.8,1.31987802]
[1729645297491,3.44015,2616.2,2615.8,1.31987802]
[1729645297813,3.44017,2616.2,2615.8,1.39633067]
[1729645298021,5.12627175,2616.2,2615.8,1.31987802]
[1729645298191,5.12627175,2616.2,2615.9,0.55620483]
[1729645298691,3.44012,2616.2,2615.9,0.55620483]
[1729645298892,5.12622175,2616.2,2615.9,0.55620483]
[1729645299101,3.44012,2616.2,2615.9,0.55620483]
[1729645299305,5.12622175,2616.2,2615.9,0.55620483]
[1729645300135,1.68610175,2616.2,2615.9,0.55620483]
[1729645300307,1.68610175,2616.2,2616.0,0.53931432]
[1729645300715,5.12621175,2616.2,2615.9,0.55620483]
[1729645301094,5.12616175,2616.3,2615.9,0.55620483]
[1729645302133,8.56624175,2616.3,2615.9,0.55620483]
[1729645302314,5.12616175,2616.3,2616.0,0.53930832]
[1729645302646,1.68610175,2616.1,2615.8,1.31987802]
[1729645302844,1.68610175,2616.0,2615.8,0.55]
[1729645303403,1.68610175,2616.1,2615.8,0.55]
[1729645305946,0.8285,2617.1,2616.1,0.7581]
[1729645306106,5.12574175,2616.6,2616.2,0.55]
[1729645306441,1.68610175,2616.6,2616.2,3.99009]
[1729645306645,1.68610175,2616.6,2616.3,0.89898202]
[1729645306815,1.68610175,2616.6,2616.2,3.99009]
[1729645307020,1.68610175,2616.7,2616.3,3.43996]
[1729645307220,1.68610175,2616.6,2616.3,3.43996]
[1729645308550,1.68610175,2616.6,2616.2,3.99003]
[1729645308920,1.68610175,2616.7,2616.2,3.99003]
[1729645309105,1.68610175,2616.7,2616.3,3.43992]
[1729645311544,3.43913,2617.0,2616.4,0.55]
[1729645311745,1.68610175,2616.9,2616.4,1.358]
[1729645312051,1.68610175,2617.0,2616.5,3.51606158]
[1729645312232,5.12521175,2617.0,2616.6,0.83138916]
[1729645312433,5.12521175,2617.0,2616.7,0.808]
[1729645313908,3.4388,2617.2,2616.7,4.24742]
[1729645314147,3.43898,2617.1,2616.7,0.808]
[1729645314312,5.12508175,2617.1,2616.8,0.50789592]
[1729645316427,1.68610175,2617.0,2616.8,0.50789592]
[1729645317453,3.43862,2617.4,2616.9,0.808]
[1729645317670,7.6532,2617.6,2617.0,6.95442532]
[1729645317817,1.68610175,2617.5,2617.1,0.94485271]
[1729645318267,1.68610175,2617.5,2617.0,3.51538532]
[1729645318752,5.12457175,2617.5,2617.0,3.51538532]
[1729645320422,1.68610175,2617.5,2617.0,3.51538532]
[1729645320723,5.12451175,2617.5,2617.0,3.51538532]
[1729645321341,5.12443175,2617.6,2617.2,0.808]
[1729645321593,3.4382,2617.7,2617.2,6.49650837]
[1729645322266,2.46260175,2617.8,2617.2,6.49650837]
[1729645322425,1.68610175,2617.7,2617.2,4.81040662]
[1729645322825,3.43819,2617.7,2617.2,4.81040662]
[1729645323325,5.12429175,2617.7,2617.3,0.64965084]
[1729645323767,3.43819,2617.7,2617.3,4.08830084]
[1729645323973,1.68610175,2617.8,2617.4,0.55]
[1729645324267,5.12407175,2617.9,2617.5,0.808]
[1729645324621,1.68610175,2617.8,2617.5,0.808]
[1729645325270,3.0,2618.5,2617.7,0.808]
[1729645325271,5.12378175,2618.1,2617.7,0.808]
[1729645325964,3.43759,2618.2,2617.7,4.24613]
[1729645326140,1.68610175,2618.1,2617.7,4.24613]
[1729645326465,5.12371175,2618.1,2617.7,1.58407859]
[1729645327619,8.56143175,2618.1,2617.7,1.58407859]
[1729645327824,1.68610175,2618.0,2617.7,1.58407859]
[1729645328062,5.12371175,2618.1,2617.7,1.58407859]
[1729645328265,1.68610175,2618.0,2617.7,1.58407859]
[1729645328467,6.87484,2618.3,2617.8,0.50222686]
[1729645328668,1.68610175,2618.2,2617.8,0.7981]
[1729645328836,0.7986,2618.4,2617.9,0.55]
[1729645328837,3.43725,2618.4,2617.9,0.55]
[1729645329022,1.68610175,2618.4,2618.0,0.7981]
[1729645330227,5.12352175,2618.3,2618.0,0.7981]
[1729645330629,5.12352175,2618.3,2618.0,1.276702]
[1729645332471,3.43742,2618.3,2618.0,1.276702]
[1729645332963,5.12352175,2618.3,2618.0,1.276702]
[1729645333342,3.43742,2618.3,2618.0,1.276702]
[1729645333771,3.43742,2618.3,2618.0,1.35308698]
[1729645334537,5.12352175,2618.3,2618.0,1.276702]
[1729645334761,3.43722,2618.4,2618.1,1.424485]
[1729645335073,3.43722,2618.4,2618.2,0.5340807]
[1729645335270,3.43722,2618.4,2618.1,1.3481]
[1729645336542,8.56060175,2618.4,2618.1,1.3481]
[1729645336772,5.12332175,2618.4,2618.1,1.3481]
[1729645337274,3.43722,2618.4,2618.1,1.3481]
[1729645337744,5.12332175,2618.4,2618.1,1.3481]
[1729645337943,1.68610175,2618.2,2618.1,1.3481]
[1729645338129,3.43747,2618.2,2618.1,0.7981]
[1729645339144,1.68610175,2618.3,2618.1,0.7981]
[1729645339350,5.12344175,2618.3,2618.1,0.7981]
[1729645340174,1.68610175,2618.3,2618.1,0.7981]
[1729645340691,1.68610175,2618.2,2618.0,0.478602]
[1729645340862,5.12353175,2618.3,2618.0,0.478602]
[1729645341566,5.12361175,2618.2,2618.0,0.478602]
[1729645341760,0.7986,2618.6,2618.0,0.55]
[1729645341761,1.68610175,2618.3,2618.0,0.55]
[1729645341973,5.12347175,2618.3,2618.0,0.55]
[1729645342379,1.68610175,2618.2,2618.0,0.55]
[1729645343066,5.12347175,2618.3,2618.0,0.55]
[1729645344257,1.68610175,2618.3,2618.0,0.55]
[1729645344459,5.12346175,2618.3,2618.0,1.030801]
[1729645345679,5.12364175,2618.2,2617.9,0.8201]
[1729645345864,5.91834175,2618.2,2617.8,0.55]
[1729645346386,3.43761,2618.1,2617.8,0.55]
[1729645346555,5.91834175,2618.2,2617.8,0.55]
[1729645346758,3.43762,2618.1,2617.9,0.480815]
[1729645346978,5.91834175,2618.2,2617.8,0.55]
[1729645347298,5.12364175,2618.2,2617.8,3.98799]
[1729645347455,3.43754,2618.2,2617.8,3.98799]
[1729645348001,3.43754,2618.2,2617.8,0.55]
[1729645348002,5.12364175,2618.2,2617.8,0.55]
[1729645348797,8.56123175,2618.2,2617.8,0.55]
[1729645349107,5.12364175,2618.2,2617.9,0.480821]
[1729645350711,1.68610175,2618.1,2617.9,0.480821]
[1729645351003,5.12364175,2618.2,2617.8,0.55]
[1729645352210,3.43761,2618.1,2617.8,0.55]
[1729645352365,1.68610175,2618.0,2617.8,0.55]
[1729645352572,5.12371175,2618.1,2617.8,0.55]
[1729645352985,8.56141175,2618.1,2617.8,0.55]
[1729645353184,5.12397175,2617.9,2617.7,0.8201]
[1729645353403,5.12397175,2617.9,2617.6,0.80148025]
[1729645353576,3.43787,2617.9,2617.6,1.42769831]
[1729645353776,3.43787,2617.9,2617.6,0.62621806]
[1729645355920,1.68610175,2617.7,2617.5,0.8201]
[1729645356284,5.12418175,2617.8,2617.5,0.8201]
[1729645357386,1.68610175,2617.8,2617.5,1.62158025]
[1729645357588,1.68610175,2617.8,2617.5,0.8201]
[1729645357881,1.68610175,2617.8,2617.5,1.85514815]
[1729645358221,5.12416175,2617.8,2617.5,1.85514815]
[1729645358718,1.68610175,2617.8,2617.5,1.85514815]